fUSD/lending_fUSD_20260606
["ID","MTS","AMOUNT","RATE_DAILY","PERIOD"]
[424262381,1780708250000,-150.0,0.00030137,2]
[424262385,1780708250000,-150.0,0.00030137,2]
[424262383,1780708250000,-150.0,0.00030137,2]
[424262380,1780708250000,-150.0,0.00030137,2]
[424262387,1780708250000,-150.0,0.00030137,2]
[424262386,1780708250000,-150.0,0.00030137,2]
[424262372,1780708250000,-150.0,0.00030137,2]
[424262399,1780708250000,-150.0,0.00030137,2]
[424262390,1780708250000,-150.0,0.00030137,2]
[424262400,1780708250000,-150.0,0.00030137,2]
[424262398,1780708250000,-150.0,0.00030137,2]
[424262394,1780708250000,-150.0,0.00030137,2]
[424262396,1780708250000,-150.0,0.00030137,2]
[424262397,1780708250000,-150.0,0.00030137,2]
[424262402,1780708250000,-150.0,0.00030137,2]
[424262393,1780708250000,-150.0,0.00030137,2]
[424262389,1780708250000,-150.0,0.00030137,2]
[424262392,1780708250000,-150.0,0.00030137,2]
[424262391,1780708250000,-150.0,0.00030137,2]
[424262388,1780708250000,-150.0,0.00030137,2]
[424262395,1780708250000,-150.0,0.00030137,2]
[424262471,1780708251000,-6072.0,0.00030352,2]
[424262473,1780708251000,-791.0,0.00030398,30]
[424262475,1780708251000,-574.0,0.00030398,30]
[424262465,1780708251000,-1347.0,0.00030242,2]
[424262478,1780708251000,-1022.0,0.00030407,30]
[424262472,1780708251000,-933.0,0.00030352,2]
[424262477,1780708251000,-3440.0,0.00030407,30]
[424262476,1780708251000,-2590.0,0.00030398,30]
[424262470,1780708251000,-641.0,0.00030341,5]
[424262458,1780708251000,-5530.0,0.000302,5]
[424262467,1780708251000,-1614.13,0.000303,7]
[424262466,1780708251000,-1182.91,0.000303,14]
[424262483,1780708251000,-3833.0,0.00030407,30]
[424262468,1780708251000,-651.06,0.00030327,7]
[424262474,1780708251000,-1014.0,0.00030398,30]
[424262479,1780708251000,-587.0,0.00030407,30]
[424262481,1780708251000,-638.0,0.00030407,30]
[424262484,1780708251000,-2413.92,0.00030409,7]
[424262482,1780708251000,-704.0,0.00030407,30]
[424262490,1780708251000,-300.39656513,0.00030578,2]
[424262492,1780708251000,-704.19962627,0.00030578,2]
[424262489,1780708251000,-2000.0,0.00030569,7]
[424262486,1780708251000,-1691.0,0.00030409,30]
[424262461,1780708251000,-402.0,0.00030239,2]
[424262491,1780708251000,-212.94586999,0.00030578,2]
[424262469,1780708251000,-1066.07,0.00030327,7]
[424262464,1780708251000,-1331.0,0.00030242,2]
[424262443,1780708251000,-150.0,0.00030137,2]
[424262459,1780708251000,-400.8,0.00030236,30]
[424262485,1780708251000,-800.0,0.00030409,30]
[424262436,1780708251000,-150.0,0.00030137,2]
[424262435,1780708251000,-150.0,0.00030137,2]
[424262437,1780708251000,-150.0,0.00030137,2]
[424262439,1780708251000,-150.0,0.00030137,2]
[424262438,1780708251000,-150.0,0.00030137,2]
[424262450,1780708251000,-300.0,0.00030137,14]
[424262440,1780708251000,-150.0,0.00030137,2]
[424262441,1780708251000,-150.0,0.00030137,2]
[424262442,1780708251000,-150.0,0.00030137,2]
[424262449,1780708251000,-14165.05,0.00030137,7]
[424262444,1780708251000,-150.0,0.00030137,2]
[424262447,1780708251000,-150.0,0.00030137,2]
[424262446,1780708251000,-150.0,0.00030137,2]
[424262445,1780708251000,-150.0,0.00030137,2]
[424262448,1780708251000,-248.73260726,0.00030137,2]
[424262453,1780708251000,-641.476799,0.000302,3]
[424262454,1780708251000,-641.476799,0.000302,4]
[424262451,1780708251000,-150.335999,0.000302,2]
[424262455,1780708251000,-641.476799,0.000302,5]
[424262452,1780708251000,-990.48,0.000302,2]
[424262463,1780708251000,-1374.0,0.00030242,2]
[424262460,1780708251000,-400.79,0.00030236,30]
[424262462,1780708251000,-4071.0,0.00030239,2]
[424262456,1780708251000,-641.476803,0.000302,6]
[424262457,1780708251000,-253.13,0.000302,2]
[424262488,1780708251000,-180.79,0.00030411,120]
[424262487,1780708251000,-408.0,0.00030409,30]
[424262480,1780708251000,-3806.0,0.00030407,30]
[424262521,1780708251000,-326.49332156,0.00030578,2]
[424262527,1780708251000,-653.16572114,0.00030578,2]
[424262523,1780708251000,-1453.61662062,0.00030578,2]
[424262525,1780708251000,-665.23520646,0.00030578,2]
[424262526,1780708251000,-170.95079609,0.00030578,2]
[424262522,1780708251000,-676.37671244,0.00030578,2]
[424262524,1780708251000,-315.65352557,0.00030578,2]
[424262530,1780708251000,-720.05012467,0.00030578,2]
[424262534,1780708251000,-776.69627828,0.00030578,2]
[424262532,1780708251000,-751.87280632,0.00030578,2]
[424262533,1780708251000,-615.35063566,0.00030578,2]
[424262531,1780708251000,-330.10677321,0.00030578,2]
[424262536,1780708251000,-1673.72594129,0.00030578,2]
[424262537,1780708251000,-535.28277997,0.00030578,2]
[424262535,1780708251000,-154.86804363,0.00030578,2]
[424262541,1780708251000,-732.60531969,0.00030578,2]
[424262538,1780708251000,-549.80210897,0.00030578,2]
[424262539,1780708251000,-633.05221093,0.00030578,2]
[424262543,1780708251000,-160.43311238,0.00030578,2]
[424262545,1780708251000,-530.81095139,0.00030578,2]
[424262544,1780708251000,-492.39587156,0.00030578,2]
[424262542,1780708251000,-650.66728218,0.00030578,2]
[424262547,1780708251000,-547.17257134,0.00030578,2]
[424262548,1780708251000,-655.37713642,0.00030578,2]
[424262546,1780708251000,-622.05082779,0.00030578,2]
[424262517,1780708251000,-416.07870238,0.00030578,2]
[424262520,1780708251000,-169.02422643,0.00030578,2]
[424262540,1780708251000,-746.59215272,0.00030578,2]
[424262519,1780708251000,-165.70335479,0.00030578,2]
[424262528,1780708251000,-670.13252645,0.00030578,2]
[424262504,1780708251000,-168.06279881,0.00030578,2]
[424262494,1780708251000,-157.68801761,0.00030578,2]
[424262493,1780708251000,-442.93396391,0.00030578,2]
[424262495,1780708251000,-584.6861633,0.00030578,2]
[424262501,1780708251000,-861.57135057,0.00030578,2]
[424262498,1780708251000,-515.46193697,0.00030578,2]
[424262496,1780708251000,-444.61150977,0.00030578,2]
[424262500,1780708251000,-421.50529013,0.00030578,2]
[424262499,1780708251000,-460.13773585,0.00030578,2]
[424262503,1780708251000,-168.98315568,0.00030578,2]
[424262502,1780708251000,-412.40664373,0.00030578,2]
[424262505,1780708251000,-170.30248078,0.00030578,2]
[424262497,1780708251000,-624.16551028,0.00030578,2]
[424262518,1780708251000,-402.20972761,0.00030578,2]
[424262529,1780708251000,-536.04726214,0.00030578,2]
[424262508,1780708251000,-402.18308405,0.00030578,2]
[424262514,1780708251000,-308.95544412,0.00030578,2]
[424262515,1780708251000,-427.39977061,0.00030578,2]
[424262513,1780708251000,-486.66674875,0.00030578,2]
[424262506,1780708251000,-178.28967843,0.00030578,2]
[424262511,1780708251000,-613.22321326,0.00030578,2]
[424262509,1780708251000,-745.27983548,0.00030578,2]
[424262516,1780708251000,-371.20028006,0.00030578,2]
[424262507,1780708251000,-794.05280956,0.00030578,2]
[424262512,1780708251000,-1533.05404257,0.00030578,2]
[424262510,1780708251000,-563.10489353,0.00030578,2]
[424262581,1780708252000,-646.42843482,0.00030619,2]
[424262582,1780708252000,-562.30504465,0.00030619,2]
[424262584,1780708252000,-193.40856996,0.00030619,2]
[424262585,1780708252000,-717.48182363,0.00030619,2]
[424262580,1780708252000,-703.46049003,0.00030619,2]
[424262586,1780708252000,-430.24250619,0.00030619,2]
[424262589,1780708252000,-346.90103295,0.00030619,2]
[424262579,1780708252000,-699.32241066,0.00030619,2]
[424262587,1780708252000,-456.23406909,0.00030619,2]
[424262590,1780708252000,-1252.32422896,0.00030619,2]
[424262583,1780708252000,-797.85320379,0.00030619,2]
[424262591,1780708252000,-812.70473869,0.00030619,2]
[424262592,1780708252000,-3332.25314982,0.00030668,2]
[424262605,1780708252000,-1013.38,0.00031,30]
[424262598,1780708252000,-500.0,0.00030847,21]
[424262595,1780708252000,-152.0,0.0003073,3]
[424262599,1780708252000,-641.0,0.00030875,6]
[424262594,1780708252000,-179.97120458,0.00030709,2]
[424262597,1780708252000,-49823.77036001,0.00030788,7]
[424262601,1780708252000,-1357.0,0.00030891,2]
[424262593,1780708252000,-2085.19,0.000307,7]
[424262600,1780708252000,-3553.0,0.00030891,2]
[424262602,1780708252000,-382.0,0.00030891,2]
[424262603,1780708252000,-1273.0,0.00030891,2]
[424262606,1780708252000,-1715.9878678,0.00031,2]
[424262604,1780708252000,-1227.0,0.00030891,2]
[424262588,1780708252000,-150.51900411,0.00030619,2]
[424262596,1780708252000,-39468.26079027,0.00030752,2]
[424262575,1780708252000,-706.48771619,0.00030619,2]
[424262551,1780708252000,-699.85109958,0.00030578,2]
[424262576,1780708252000,-656.66307347,0.00030619,2]
[424262550,1780708252000,-689.96657269,0.00030578,2]
[424262608,1780708252000,-3332.25314982,0.00031026,2]
[424262552,1780708252000,-599.62667407,0.00030578,2]
[424262549,1780708252000,-405.48865826,0.00030578,2]
[424262553,1780708252000,-435.46553986,0.00030578,2]
[424262554,1780708252000,-653.1419901,0.00030578,2]
[424262558,1780708252000,-814.08103444,0.00030595,2]
[424262557,1780708252000,-628.42522983,0.00030595,2]
[424262555,1780708252000,-629.68675905,0.00030578,2]
[424262556,1780708252000,-452.34008586,0.00030595,2]
[424262561,1780708252000,-624.40206316,0.00030595,2]
[424262559,1780708252000,-588.32833982,0.00030595,2]
[424262560,1780708252000,-622.1464237,0.00030595,2]
[424262562,1780708252000,-456.76290369,0.00030595,2]
[424262564,1780708252000,-673.85727577,0.00030595,2]
[424262565,1780708252000,-704.7714049,0.00030595,2]
[424262563,1780708252000,-727.7536669,0.00030595,2]
[424262566,1780708252000,-193.36365148,0.00030595,2]
[424262568,1780708252000,-287.20890148,0.00030595,2]
[424262570,1780708252000,-690.3544381,0.00030595,2]
[424262569,1780708252000,-682.12934131,0.00030595,2]
[424262567,1780708252000,-435.11333649,0.00030595,2]
[424262573,1780708252000,-449.9545782,0.00030599,2]
[424262577,1780708252000,-343.82648859,0.00030619,2]
[424262572,1780708252000,-487.53702531,0.00030599,2]
[424262578,1780708252000,-694.77585461,0.00030619,2]
[424262574,1780708252000,-803.12994658,0.00030599,2]
[424262571,1780708252000,-472.08804397,0.00030595,2]
[424262607,1780708252000,-215.77576141,0.00031,3]
[424262613,1780708252000,-931.59979435,0.0003116,2]
[424262609,1780708252000,-250.0,0.00031051,7]
[424262641,1780708252000,-868.46981827,0.00031201,2]
[424262647,1780708252000,-1000.0,0.0003132,2]
[424262645,1780708252000,-1013.38,0.00031277,30]
[424262642,1780708252000,-874.15301333,0.00031201,2]
[424262648,1780708252000,-1000.0,0.0003132,2]
[424262643,1780708252000,-1565.40528621,0.00031201,2]
[424262644,1780708252000,-1015.88092336,0.00031201,2]
[424262649,1780708252000,-1000.0,0.0003132,2]
[424262646,1780708252000,-3332.25314982,0.00031289,2]
[424262654,1780708252000,-719.09,0.0003132,2]
[424262653,1780708252000,-1000.0,0.0003132,2]
[424262660,1780708252000,-791.0,0.00031398,30]
[424262659,1780708252000,-3332.25314982,0.00031385,2]
[424262650,1780708252000,-1000.0,0.0003132,2]
[424262658,1780708252000,-1013.38,0.00031369,30]
[424262662,1780708252000,-574.0,0.00031398,30]
[424262664,1780708252000,-2085.19,0.000314,7]
[424262656,1780708252000,-2000.0,0.0003132,2]
[424262655,1780708252000,-1941.69,0.0003132,2]
[424262657,1780708252000,-1946.19,0.0003132,2]
[424262663,1780708252000,-2590.0,0.00031398,30]
[424262665,1780708252000,-1039.35,0.000314,7]
[424262667,1780708252000,-1022.0,0.00031407,30]
[424262669,1780708252000,-3806.0,0.00031407,30]
[424262668,1780708252000,-587.0,0.00031407,30]
[424262666,1780708252000,-3440.0,0.00031407,30]
[424262611,1780708252000,-880.24953284,0.0003116,2]
[424262670,1780708252000,-638.0,0.00031407,30]
[424262661,1780708252000,-1014.0,0.00031398,30]
[424262651,1780708252000,-1000.0,0.0003132,2]
[424262671,1780708252000,-704.0,0.00031407,30]
[424262640,1780708252000,-820.82884184,0.00031201,2]
[424262652,1780708252000,-1000.0,0.0003132,2]
[424262610,1780708252000,-1013.38,0.00031092,30]
[424262615,1780708252000,-2092.15742661,0.0003116,2]
[424262617,1780708252000,-879.26694072,0.0003116,2]
[424262616,1780708252000,-1817.02077577,0.0003116,2]
[424262614,1780708252000,-1916.31755321,0.0003116,2]
[424262625,1780708252000,-862.45821586,0.0003116,2]
[424262618,1780708252000,-837.66565806,0.0003116,2]
[424262620,1780708252000,-970.87034785,0.0003116,2]
[424262624,1780708252000,-819.22142053,0.0003116,2]
[424262619,1780708252000,-900.06265583,0.0003116,2]
[424262622,1780708252000,-915.75664962,0.0003116,2]
[424262621,1780708252000,-769.18829457,0.0003116,2]
[424262623,1780708252000,-777.56353474,0.0003116,2]
[424262612,1780708252000,-992.56601195,0.0003116,2]
[424262637,1780708252000,-1614.13,0.000312,7]
[424262636,1780708252000,-469.589496,0.000312,4]
[424262635,1780708252000,-160.0,0.000312,4]
[424262630,1780708252000,-785.53153729,0.00031177,2]
[424262629,1780708252000,-3332.25314982,0.00031175,2]
[424262627,1780708252000,-977.76127915,0.0003116,2]
[424262634,1780708252000,-1013.38,0.00031185,30]
[424262631,1780708252000,-777.68302962,0.00031177,2]
[424262632,1780708252000,-852.66167664,0.00031177,2]
[424262633,1780708252000,-1003.91243323,0.00031181,2]
[424262628,1780708252000,-787.10844881,0.0003116,2]
[424262639,1780708252000,-883.10964523,0.00031201,2]
[424262638,1780708252000,-1000.0,0.000312,7]
[424262626,1780708252000,-816.42748763,0.0003116,2]
[424262714,1780708253000,-354.66236402,0.00032,120]
[424262706,1780708253000,-271.84335937,0.00032,120]
[424262709,1780708253000,-1992.03823482,0.00032,120]
[424262707,1780708253000,-589.99031754,0.00032,120]
[424262705,1780708253000,-915.84880728,0.00032,120]
[424262713,1780708253000,-179.32196746,0.00032,120]
[424262704,1780708253000,-333.99681997,0.00032,120]
[424262708,1780708253000,-1483.76349923,0.00032,120]
[424262710,1780708253000,-1015.33755951,0.00032,120]
[424262702,1780708253000,-763.60610746,0.00032,120]
[424262712,1780708253000,-403.02548314,0.00032,120]
[424262725,1780708253000,-215.77576141,0.00032,30]
[424262726,1780708253000,-3332.25314982,0.0003201,2]
[424262716,1780708253000,-373.05208942,0.00032,120]
[424262721,1780708253000,-278.27015964,0.00032,120]
[424262724,1780708253000,-593.93823306,0.00032,120]
[424262715,1780708253000,-229.84350995,0.00032,120]
[424262719,1780708253000,-1351.91298453,0.00032,120]
[424262718,1780708253000,-196.41547388,0.00032,120]
[424262723,1780708253000,-2085.19,0.00032,7]
[424262720,1780708253000,-429.94758735,0.00032,120]
[424262722,1780708253000,-700.0,0.00032,2]
[424262727,1780708253000,-1013.38,0.00032015,30]
[424262729,1780708253000,-2299.58106385,0.00032033,2]
[424262731,1780708253000,-2180.42493093,0.00032033,2]
[424262711,1780708253000,-890.90734959,0.00032,120]
[424262717,1780708253000,-278.53955061,0.00032,120]
[424262703,1780708253000,-1032.2918016,0.00032,120]
[424262685,1780708253000,-1013.38,0.00031646,30]
[424262700,1780708253000,-296.56101067,0.00032,120]
[424262675,1780708253000,-1691.0,0.00031409,30]
[424262676,1780708253000,-408.0,0.00031409,30]
[424262730,1780708253000,-2510.58891194,0.00032033,2]
[424262673,1780708253000,-641.0,0.00031409,6]
[424262672,1780708253000,-3833.0,0.00031407,30]
[424262677,1780708253000,-1013.38,0.00031462,30]
[424262681,1780708253000,-3332.25314982,0.00031546,2]
[424262680,1780708253000,-300.0,0.00031507,14]
[424262688,1780708253000,-3332.25314982,0.00031744,2]
[424262678,1780708253000,-3332.25314982,0.0003147,2]
[424262682,1780708253000,-1013.38,0.00031554,30]
[424262679,1780708253000,-1032.04,0.00031471,7]
[424262683,1780708253000,-3332.25314982,0.00031617,2]
[424262684,1780708253000,-150.0,0.00031644,2]
[424262686,1780708253000,-3332.25314982,0.00031682,2]
[424262687,1780708253000,-1013.38,0.00031738,30]
[424262689,1780708253000,-500.0,0.00031772,23]
[424262693,1780708253000,-1614.13,0.000319,7]
[424262691,1780708253000,-1013.38,0.00031831,30]
[424262692,1780708253000,-3332.25314982,0.00031857,2]
[424262694,1780708253000,-3332.25314982,0.0003191,2]
[424262695,1780708253000,-1013.38,0.00031923,30]
[424262699,1780708253000,-482.40918835,0.00032,120]
[424262698,1780708253000,-14165.05,0.00031975,14]
[424262697,1780708253000,-3332.25314982,0.00031961,2]
[424262696,1780708253000,-641.0,0.00031943,7]
[424262690,1780708253000,-3332.25314982,0.00031802,2]
[424262701,1780708253000,-1973.09171399,0.00032,120]
[424262735,1780708253000,-1034.94985903,0.00032033,2]
[424262674,1780708253000,-800.0,0.00031409,30]
[424262736,1780708253000,-979.71298515,0.00032033,2]
[424262775,1780708253000,-574.0,0.00032398,30]
[424262770,1780708253000,-150.0,0.00032375,7]
[424262771,1780708253000,-480.14280083,0.00032375,7]
[424262768,1780708253000,-150.0,0.00032375,7]
[424262774,1780708253000,-1014.0,0.00032398,30]
[424262769,1780708253000,-150.0,0.00032375,7]
[424262766,1780708253000,-150.0,0.00032375,7]
[424262767,1780708253000,-203.7220427,0.00032375,7]
[424262772,1780708253000,-3332.25314982,0.00032388,2]
[424262773,1780708253000,-791.0,0.00032398,30]
[424262776,1780708253000,-2590.0,0.00032398,30]
[424262785,1780708253000,-1691.0,0.00032409,30]
[424262779,1780708253000,-587.0,0.00032407,30]
[424262783,1780708253000,-3833.0,0.00032407,30]
[424262780,1780708253000,-3806.0,0.00032407,30]
[424262778,1780708253000,-1022.0,0.00032407,30]
[424262786,1780708253000,-408.0,0.00032409,30]
[424262777,1780708253000,-3440.0,0.00032407,30]
[424262782,1780708253000,-704.0,0.00032407,30]
[424262784,1780708253000,-800.0,0.00032409,30]
[424262787,1780708253000,-480.14280083,0.00032412,7]
[424262781,1780708253000,-638.0,0.00032407,30]
[424262789,1780708253000,-3332.25314982,0.00032425,2]
[424262788,1780708253000,-150.0,0.00032419,7]
[424262791,1780708253000,-150.0,0.00032442,7]
[424262792,1780708253000,-179.97120458,0.00032448,2]
[424262728,1780708253000,-1056.29943941,0.00032033,2]
[424262765,1780708253000,-150.0,0.00032375,7]
[424262764,1780708253000,-150.0,0.00032375,7]
[424262790,1780708253000,-150.0,0.00032432,7]
[424262762,1780708253000,-150.0,0.00032375,7]
[424262763,1780708253000,-150.0,0.00032375,7]
[424262733,1780708253000,-1098.90797954,0.00032033,2]
[424262734,1780708253000,-983.06570463,0.00032033,2]
[424262732,1780708253000,-923.02595349,0.00032033,2]
[424262739,1780708253000,-3332.25314982,0.00032057,2]
[424262750,1780708253000,-366.95,0.00032192,2]
[424262742,1780708253000,-1048.98361599,0.00032075,2]
[424262738,1780708253000,-1023.19401197,0.0003205,2]
[424262749,1780708253000,-3332.25314982,0.0003219,2]
[424262745,1780708253000,-1219.05710804,0.00032075,2]
[424262743,1780708253000,-1027.21173621,0.00032075,2]
[424262744,1780708253000,-1878.48634345,0.00032075,2]
[424262741,1780708253000,-952.07971946,0.00032075,2]
[424262751,1780708253000,-160.0,0.000322,7]
[424262737,1780708253000,-944.53013857,0.00032033,2]
[424262748,1780708253000,-3332.25314982,0.00032147,2]
[424262740,1780708253000,-1042.16378192,0.00032075,2]
[424262756,1780708253000,-3332.25314982,0.00032231,2]
[424262759,1780708253000,-3332.25314982,0.0003235,2]
[424262758,1780708253000,-3332.25314982,0.00032312,2]
[424262760,1780708253000,-150.0,0.00032375,7]
[424262761,1780708253000,-150.0,0.00032375,7]
[424262752,1780708253000,-210.224,0.000322,7]
[424262746,1780708253000,-3332.25314982,0.00032103,2]
[424262755,1780708253000,-4071.0,0.0003221,5]
[424262747,1780708253000,-1013.38,0.00032108,30]
[424262757,1780708253000,-3332.25314982,0.00032272,2]
[424262753,1780708253000,-210.224,0.000322,7]
[424262754,1780708253000,-1013.38,0.000322,30]
[424262830,1780708254000,-150.0,0.00032713,7]
[424262833,1780708254000,-3332.25314982,0.00032728,2]
[424262821,1780708254000,-150.0,0.00032656,7]
[424262826,1780708254000,-152.0,0.00032685,4]
[424262823,1780708254000,-3332.25314982,0.00032665,2]
[424262825,1780708254000,-150.0,0.00032682,7]
[424262827,1780708254000,-3332.25314982,0.00032697,2]
[424262829,1780708254000,-150.0,0.00032708,7]
[424262828,1780708254000,-480.14280083,0.00032702,7]
[424262832,1780708254000,-150.0,0.00032726,7]
[424262824,1780708254000,-480.14280083,0.00032666,7]
[424262839,1780708254000,-480.14280083,0.00032775,7]
[424262834,1780708254000,-480.14280083,0.00032739,7]
[424262835,1780708254000,-3332.25314982,0.00032759,2]
[424262837,1780708254000,-150.0,0.0003277,7]
[424262838,1780708254000,-150.0,0.00032775,7]
[424262836,1780708254000,-150.0,0.00032769,7]
[424262840,1780708254000,-3332.25314982,0.0003279,2]
[424262841,1780708254000,-150.0,0.00032807,7]
[424262842,1780708254000,-480.14280083,0.00032811,7]
[424262844,1780708254000,-3332.25314982,0.0003282,2]
[424262843,1780708254000,-150.0,0.00032814,7]
[424262822,1780708254000,-150.0,0.00032663,7]
[424262845,1780708254000,-150.0,0.00032825,7]
[424262831,1780708254000,-458.15623685,0.00032725,24]
[424262820,1780708254000,-150.0,0.00032642,7]
[424262806,1780708254000,-150.0,0.00032551,7]
[424262819,1780708254000,-150.0,0.00032639,7]
[424262846,1780708254000,-150.0,0.00032825,7]
[424262799,1780708254000,-3332.25314982,0.00032497,2]
[424262800,1780708254000,-150.0,0.00032507,7]
[424262795,1780708254000,-150.0,0.00032463,7]
[424262798,1780708254000,-150.0,0.00032488,7]
[424262794,1780708254000,-3332.25314982,0.00032461,2]
[424262797,1780708254000,-480.14280083,0.00032484,7]
[424262793,1780708254000,-480.14280083,0.00032448,7]
[424262796,1780708254000,-641.0,0.00032477,7]
[424262808,1780708254000,-3332.25314982,0.00032566,2]
[424262802,1780708254000,-150.0,0.00032519,7]
[424262809,1780708254000,-150.0,0.00032575,7]
[424262801,1780708254000,-150.0,0.00032509,7]
[424262807,1780708254000,-480.14280083,0.00032557,7]
[424262804,1780708254000,-3332.25314982,0.00032532,2]
[424262803,1780708254000,-480.14280083,0.00032521,7]
[424262805,1780708254000,-150.0,0.00032544,7]
[424262811,1780708254000,-150.0,0.00032595,7]
[424262810,1780708254000,-480.14280083,0.00032593,7]
[424262813,1780708254000,-1614.13,0.000326,7]
[424262814,1780708254000,-2085.19,0.000326,7]
[424262812,1780708254000,-3332.25314982,0.00032599,2]
[424262818,1780708254000,-3332.25314982,0.00032632,2]
[424262816,1780708254000,-480.14280083,0.0003263,7]
[424262815,1780708254000,-150.0,0.000326,7]
[424262817,1780708254000,-150.0,0.00032632,7]
[424262847,1780708254000,-150.0,0.00032842,7]
[424262848,1780708254000,-480.14280083,0.00032848,7]
[424262849,1780708254000,-3332.25314982,0.0003285,2]
[424262879,1780708254000,-480.14280083,0.0003292,7]
[424262881,1780708254000,-150.0,0.00032937,7]
[424262885,1780708254000,-406.08085529,0.00032955,2]
[424262887,1780708254000,-500.0,0.00032957,120]
[424262889,1780708254000,-150.0,0.00032975,7]
[424262882,1780708254000,-150.0,0.00032946,7]
[424262880,1780708254000,-3332.25314982,0.00032936,2]
[424262888,1780708254000,-3332.25314982,0.00032965,2]
[424262886,1780708254000,-480.14280083,0.00032957,7]
[424262890,1780708254000,-183.60827665,0.00032976,11]
[424262883,1780708254000,-150.0,0.00032951,7]
[424262884,1780708254000,-400.0,0.00032955,2]
[424262901,1780708254000,-1973.09171399,0.00033,120]
[424262902,1780708254000,-1032.2918016,0.00033,120]
[424262891,1780708254000,-1001.61824326,0.00032977,2]
[424262892,1780708254000,-769.13,0.00032977,30]
[424262895,1780708254000,-168.23,0.00032992,7]
[424262898,1780708254000,-150.0,0.00032994,7]
[424262893,1780708254000,-1605.68,0.00032977,2]
[424262894,1780708254000,-150.0,0.0003299,7]
[424262896,1780708254000,-3332.25314982,0.00032992,2]
[424262899,1780708254000,-482.40918835,0.00033,120]
[424262897,1780708254000,-480.14280083,0.00032993,7]
[424262904,1780708254000,-333.99681997,0.00033,120]
[424262903,1780708254000,-763.60610746,0.00033,120]
[424262878,1780708254000,-150.0,0.00032908,7]
[424262873,1780708254000,-150.0,0.00032881,7]
[424262900,1780708254000,-296.56101067,0.00033,120]
[424262875,1780708254000,-150.0,0.00032889,7]
[424262877,1780708254000,-3332.25314982,0.00032908,2]
[424262850,1780708254000,-150.0,0.00032858,7]
[424262851,1780708254000,-1000.0,0.00032877,10]
[424262853,1780708254000,-351.03,0.00032877,2]
[424262852,1780708254000,-630.0,0.00032877,10]
[424262855,1780708254000,-151.0,0.00032877,7]
[424262854,1780708254000,-905.92,0.00032877,2]
[424262856,1780708254000,-151.0,0.00032877,7]
[424262858,1780708254000,-1000.0,0.00032877,30]
[424262859,1780708254000,-288.01,0.00032877,120]
[424262860,1780708254000,-1000.0,0.00032877,120]
[424262861,1780708254000,-500.0,0.00032877,2]
[424262862,1780708254000,-500.0,0.00032877,2]
[424262857,1780708254000,-151.0,0.00032877,7]
[424262864,1780708254000,-500.0,0.00032877,2]
[424262876,1780708254000,-150.0,0.00032902,7]
[424262872,1780708254000,-3332.25314982,0.00032879,2]
[424262874,1780708254000,-480.14280083,0.00032884,7]
[424262870,1780708254000,-330.46506309,0.00032877,10]
[424262869,1780708254000,-500.0,0.00032877,10]
[424262871,1780708254000,-300.0,0.00032877,14]
[424262866,1780708254000,-500.0,0.00032877,2]
[424262865,1780708254000,-500.0,0.00032877,2]
[424262867,1780708254000,-426.16084305,0.00032877,2]
[424262863,1780708254000,-500.0,0.00032877,2]
[424262868,1780708254000,-500.0,0.00032877,10]
[424262946,1780708255000,-3332.25314982,0.00033127,2]
[424262941,1780708255000,-150.0,0.00033106,7]
[424262943,1780708255000,-150.0,0.00033121,7]
[424262951,1780708255000,-150.0,0.00033162,7]
[424262942,1780708255000,-150.0,0.00033108,7]
[424262938,1780708255000,-150.0,0.00033095,7]
[424262937,1780708255000,-150.0,0.00033077,7]
[424262936,1780708255000,-3332.25314982,0.00033074,2]
[424262935,1780708255000,-212.97758164,0.00033073,14]